[Event "GrandPrix_30.05"]
[Site "Chess.com"]
[Date "2020.05.30"]
[Round "3"]
[White "tsvet2005"]
[Black "Kopytkin"]
[Result "1-0"]
[WhiteElo "2246"]
[BlackElo "2076"]
[TimeControl "600+2"]
[EndTime "9:22:06 PDT"]
[Termination "tsvet2005 won on time"]

1. d4 {[%clk 0:10:01.9]} 1... d5 {[%clk 0:09:51.5]} 2. c4 {[%clk 0:10:02.6]}
2... Bf5 {[%clk 0:09:49]} 3. cxd5 {[%clk 0:10:01.3]} 3... Nf6 {[%clk 0:09:50.1]}
4. Qa4+ {[%clk 0:09:57.1]} 4... c6 {[%clk 0:09:19.1]} 5. dxc6 {[%clk 0:09:14.1]}
5... Nxc6 {[%clk 0:09:18.5]} 6. e3 {[%clk 0:09:14.7]} 6... Rc8 {[%clk
0:09:13.6]} 7. Nf3 {[%clk 0:09:07.3]} 7... a6 {[%clk 0:09:04.2]} 8. a3 {[%clk
0:08:51.5]} 8... Qa5+ {[%clk 0:08:24]} 9. Qxa5 {[%clk 0:08:42.8]} 9... Nxa5
{[%clk 0:08:24]} 10. Nbd2 {[%clk 0:08:44.3]} 10... e6 {[%clk 0:07:56.2]} 11. b4
{[%clk 0:08:32.2]} 11... Nc6 {[%clk 0:07:55.5]} 12. Bb2 {[%clk 0:08:33.5]} 12...
Bxb4 {[%clk 0:06:56.7]} 13. axb4 {[%clk 0:08:01.2]} 13... Nxb4 {[%clk
0:06:57.3]} 14. Rc1 {[%clk 0:07:49.7]} 14... O-O {[%clk 0:06:57.4]} 15. Be2
{[%clk 0:07:18.1]} 15... Nc2+ {[%clk 0:04:33]} 16. Kf1 {[%clk 0:07:02.6]} 16...
b5 {[%clk 0:04:06]} 17. h3 {[%clk 0:06:58]} 17... a5 {[%clk 0:02:56.3]} 18. g4
{[%clk 0:06:57.6]} 18... Bg6 {[%clk 0:02:56.8]} 19. Ne5 {[%clk 0:06:46.6]} 19...
b4 {[%clk 0:01:50.3]} 20. Nxg6 {[%clk 0:06:36.9]} 20... hxg6 {[%clk 0:01:47.7]}
21. Bd3 {[%clk 0:06:37.7]} 21... b3 {[%clk 0:01:17.1]} 22. Nxb3 {[%clk
0:06:31.6]} 22... Nb4 {[%clk 0:01:17.7]} 23. Be2 {[%clk 0:05:03.2]} 23... Rxc1+
{[%clk 0:00:48.9]} 24. Bxc1 {[%clk 0:05:05.1]} 24... Rc8 {[%clk 0:00:49.5]} 25.
Nc5 {[%clk 0:04:26.6]} 25... Ne4 {[%clk 0:00:29.3]} 26. Kg2 {[%clk 0:04:18.6]}
26... Nxc5 {[%clk 0:00:28.4]} 27. dxc5 {[%clk 0:04:20.5]} 27... Rxc5 {[%clk
0:00:29.5]} 28. Ba3 {[%clk 0:04:21.1]} 28... Rc2 {[%clk 0:00:30.6]} 29. Bxb4
{[%clk 0:03:51.7]} 29... axb4 {[%clk 0:00:30.2]} 30. Kf3 {[%clk 0:03:53.1]}
30... b3 {[%clk 0:00:28.5]} 31. Rb1 {[%clk 0:03:53.1]} 31... b2 {[%clk
0:00:29.1]} 32. Bd3 {[%clk 0:03:47.2]} 32... Rd2 {[%clk 0:00:25.9]} 33. Bc4
{[%clk 0:03:46.7]} 33... Kf8 {[%clk 0:00:18.6]} 34. e4 {[%clk 0:03:39.3]} 34...
Rd4 {[%clk 0:00:18.9]} 35. Be2 {[%clk 0:03:37.3]} 35... Rb4 {[%clk 0:00:18.4]}
36. Ke3 {[%clk 0:03:39]} 36... Ke7 {[%clk 0:00:18.8]} 37. Bd3 {[%clk 0:03:38.5]}
37... g5 {[%clk 0:00:19.3]} 38. Kd2 {[%clk 0:03:37.2]} 38... Kf6 {[%clk
0:00:20]} 39. Kc3 {[%clk 0:03:34.3]} 39... Rb6 {[%clk 0:00:20.9]} 40. Rxb2
{[%clk 0:03:35.5]} 40... Rxb2 {[%clk 0:00:21.2]} 41. Kxb2 {[%clk 0:03:37.4]}
41... Ke5 {[%clk 0:00:22.7]} 42. Kc3 {[%clk 0:03:38.7]} 42... Kf4 {[%clk
0:00:24.1]} 43. Kd2 {[%clk 0:03:07]} 43... Kf3 {[%clk 0:00:23.2]} 44. Ke1 {[%clk
0:03:08.2]} 44... Kg2 {[%clk 0:00:20.9]} 45. Bf1+ {[%clk 0:03:08]} 45... Kf3
{[%clk 0:00:22.1]} 46. Bd3 {[%clk 0:03:05.3]} 46... Kg2 {[%clk 0:00:22.9]} 47.
Ke2 {[%clk 0:03:06.4]} 47... Kxh3 {[%clk 0:00:15.9]} 48. Kf3 {[%clk 0:03:07]}
48... Kh4 {[%clk 0:00:10.7]} 49. e5 {[%clk 0:03:05.4]} 49... Kh3 {[%clk
0:00:11.1]} 50. Bb5 {[%clk 0:02:59.9]} 50... f5 {[%clk 0:00:08.8]} 51. gxf5
{[%clk 0:02:59.3]} 51... exf5 {[%clk 0:00:09.1]} 52. e6 {[%clk 0:03:01.2]} 1-0

[Event "GrandPrix_30.05"]
[Site "Chess.com"]
[Date "2020.05.30"]
[Round "3"]
[White "Micki-taryan"]
[Black "Petriashvili02"]
[Result "1/2-1/2"]
[WhiteElo "2522"]
[BlackElo "2323"]
[TimeControl "600+2"]
[EndTime "9:22:11 PDT"]
[Termination "Game drawn - insufficient material"]

1. d4 {[%clk 0:10:01]} 1... Nf6 {[%clk 0:10:01.3]} 2. Nf3 {[%clk 0:09:59.9]}
2... g6 {[%clk 0:10:02.6]} 3. Nc3 {[%clk 0:09:48.6]} 3... d5 {[%clk 0:10:02.1]}
4. Bf4 {[%clk 0:09:50.1]} 4... Bg7 {[%clk 0:10:02.5]} 5. Nb5 {[%clk 0:09:51.6]}
5... Na6 {[%clk 0:10:03.6]} 6. e3 {[%clk 0:09:53.2]} 6... c6 {[%clk 0:09:53.4]}
7. Nc3 {[%clk 0:09:54.5]} 7... O-O {[%clk 0:09:40.2]} 8. Bxa6 {[%clk 0:09:55]}
8... bxa6 {[%clk 0:09:41.3]} 9. O-O {[%clk 0:09:53.4]} 9... Bg4 {[%clk
0:09:37.8]} 10. h3 {[%clk 0:09:54.3]} 10... Bxf3 {[%clk 0:09:38.9]} 11. Qxf3
{[%clk 0:09:56.2]} 11... Nd7 {[%clk 0:09:38.8]} 12. Rfd1 {[%clk 0:09:30.7]}
12... e6 {[%clk 0:09:39.9]} 13. Na4 {[%clk 0:09:16.4]} 13... Qa5 {[%clk
0:09:26.4]} 14. b3 {[%clk 0:09:17.4]} 14... Rfc8 {[%clk 0:09:25.8]} 15. Bd6
{[%clk 0:09:15.8]} 15... Bf8 {[%clk 0:09:23]} 16. Qf4 {[%clk 0:08:57.7]} 16...
Bxd6 {[%clk 0:09:10.6]} 17. Qxd6 {[%clk 0:08:59.6]} 17... Qc7 {[%clk 0:09:11.3]}
18. Qxc7 {[%clk 0:08:50.6]} 18... Rxc7 {[%clk 0:09:13.2]} 19. b4 {[%clk
0:08:38]} 19... Rb7 {[%clk 0:09:13.1]} 20. a3 {[%clk 0:08:37.4]} 20... a5 {[%clk
0:09:10.3]} 21. c3 {[%clk 0:08:25.3]} 21... axb4 {[%clk 0:09:06.6]} 22. axb4
{[%clk 0:08:21]} 22... a5 {[%clk 0:09:07.3]} 23. Nb2 {[%clk 0:07:29.6]} 23...
Rba7 {[%clk 0:09:05.2]} 24. Rac1 {[%clk 0:07:29.2]} 24... Nb6 {[%clk 0:08:24.8]}
25. Rd2 {[%clk 0:06:34]} 25... axb4 {[%clk 0:08:03.9]} 26. cxb4 {[%clk
0:06:35.9]} 26... Ra1 {[%clk 0:07:55.5]} 27. Rc2 {[%clk 0:05:50.6]} 27... R8a2
{[%clk 0:07:31.8]} 28. Rxa1 {[%clk 0:05:26.6]} 28... Rxa1+ {[%clk 0:07:33.7]}
29. Kh2 {[%clk 0:05:28.2]} 29... Ra2 {[%clk 0:07:30]} 30. Rxc6 {[%clk
0:05:28.9]} 30... Rxb2 {[%clk 0:07:31.2]} 31. Rxb6 {[%clk 0:05:30.2]} 31... Rxf2
{[%clk 0:07:32.5]} 32. Kg3 {[%clk 0:05:31.7]} 32... Rb2 {[%clk 0:07:31.7]} 33.
h4 {[%clk 0:05:30.5]} 33... Kg7 {[%clk 0:07:32.5]} 34. Kf3 {[%clk 0:05:31.4]}
34... h5 {[%clk 0:06:46.7]} 35. Rb8 {[%clk 0:05:31.7]} 35... Kf6 {[%clk
0:06:47.3]} 36. Rb7 {[%clk 0:05:28.1]} 36... Kg7 {[%clk 0:06:47.7]} 37. b5
{[%clk 0:05:28.6]} 37... Kf6 {[%clk 0:06:48.5]} 38. b6 {[%clk 0:05:30.2]} 38...
Kg7 {[%clk 0:06:46.6]} 39. g3 {[%clk 0:04:51.4]} 39... Kf6 {[%clk 0:06:42.3]}
40. g4 {[%clk 0:04:38.1]} 40... hxg4+ {[%clk 0:06:39.9]} 41. Kxg4 {[%clk
0:04:40]} 41... Rb3 {[%clk 0:06:35.6]} 42. Kf4 {[%clk 0:04:40.5]} 42... Rb1
{[%clk 0:06:36.4]} 43. Rb8 {[%clk 0:04:38.8]} 43... Rf1+ {[%clk 0:06:29.5]} 44.
Kg3 {[%clk 0:04:31.6]} 44... Rb1 {[%clk 0:06:30.3]} 45. Rb7 {[%clk 0:04:22.7]}
45... Rb3 {[%clk 0:06:00.5]} 46. Kf3 {[%clk 0:04:22.7]} 46... Rb2 {[%clk
0:06:00.8]} 47. Kg4 {[%clk 0:03:53.4]} 47... Rb1 {[%clk 0:05:58.3]} 48. Kf4
{[%clk 0:03:50.2]} 48... Rf1+ {[%clk 0:05:59.3]} 49. Kg3 {[%clk 0:03:51.6]}
49... Rb1 {[%clk 0:05:59.6]} 50. Kf2 {[%clk 0:03:46.4]} 50... Rb2+ {[%clk
0:05:49.8]} 51. Kf3 {[%clk 0:03:46.6]} 51... Kg7 {[%clk 0:05:50.7]} 52. e4
{[%clk 0:03:35.4]} 52... dxe4+ {[%clk 0:05:51.4]} 53. Kxe4 {[%clk 0:03:36.3]}
53... Rb3 {[%clk 0:05:22.5]} 54. Ke5 {[%clk 0:03:06.8]} 54... Rb5+ {[%clk
0:05:00]} 55. Kd6 {[%clk 0:03:07.7]} 55... Rd5+ {[%clk 0:04:58.7]} 56. Kc6
{[%clk 0:02:44.3]} 56... Rxd4 {[%clk 0:04:57.5]} 57. Rd7 {[%clk 0:02:45.3]}
57... Rc4+ {[%clk 0:04:30.6]} 58. Kb5 {[%clk 0:02:40.3]} 58... Rxh4 {[%clk
0:04:24.2]} 59. Rd8 {[%clk 0:02:28.8]} 59... Rh1 {[%clk 0:03:49.2]} 60. b7
{[%clk 0:02:28.8]} 60... Rb1+ {[%clk 0:03:50.2]} 61. Kc6 {[%clk 0:02:30.1]}
61... Kf6 {[%clk 0:03:30.2]} 62. b8=Q {[%clk 0:02:29.3]} 62... Rxb8 {[%clk
0:03:32.1]} 63. Rxb8 {[%clk 0:02:30.9]} 63... Ke5 {[%clk 0:03:33.4]} 64. Rb5+
{[%clk 0:02:23.7]} 64... Kf4 {[%clk 0:03:21.3]} 65. Kd6 {[%clk 0:02:17.7]} 65...
g5 {[%clk 0:03:18.3]} 66. Rb7 {[%clk 0:02:16.7]} 66... g4 {[%clk 0:03:04]} 67.
Rxf7+ {[%clk 0:02:10.6]} 67... Ke3 {[%clk 0:03:05.1]} 68. Ra7 {[%clk 0:01:46.9]}
68... g3 {[%clk 0:03:04.4]} 69. Ra2 {[%clk 0:01:44]} 69... Kf3 {[%clk
0:03:04.1]} 70. Ra3+ {[%clk 0:01:45.3]} 70... Kf2 {[%clk 0:03:05.2]} 71. Ke5
{[%clk 0:01:39.1]} 71... g2 {[%clk 0:03:06.2]} 72. Ra2+ {[%clk 0:01:38.7]} 72...
Kg3 {[%clk 0:03:06.4]} 73. Ra1 {[%clk 0:01:38.8]} 73... Kh2 {[%clk 0:03:07.5]}
74. Kxe6 {[%clk 0:01:34.4]} 74... g1=Q {[%clk 0:03:08.4]} 75. Rxg1 {[%clk
0:01:35.7]} 75... Kxg1 {[%clk 0:03:10.3]} 1/2-1/2

[Event "GrandPrix_30.05"]
[Site "Chess.com"]
[Date "2020.05.30"]
[Round "3"]
[White "chansen64"]
[Black "SoltaniciR"]
[Result "1-0"]
[WhiteElo "2062"]
[BlackElo "2100"]
[TimeControl "600+2"]
[EndTime "9:22:20 PDT"]
[Termination "chansen64 won on time"]

1. d4 {[%clk 0:10:01.9]} 1... Nf6 {[%clk 0:09:57.3]} 2. c4 {[%clk 0:09:35.6]}
2... Nc6 {[%clk 0:09:57.5]} 3. Nf3 {[%clk 0:09:32.8]} 3... e6 {[%clk 0:09:58]}
4. g3 {[%clk 0:09:30.1]} 4... Bb4+ {[%clk 0:09:58]} 5. Nbd2 {[%clk 0:09:24.8]}
5... d6 {[%clk 0:09:52.3]} 6. Bg2 {[%clk 0:09:24.8]} 6... O-O {[%clk 0:09:52.7]}
7. O-O {[%clk 0:09:25.5]} 7... Bxd2 {[%clk 0:09:53.6]} 8. Bxd2 {[%clk
0:09:23.1]} 8... a5 {[%clk 0:09:54.5]} 9. Qc2 {[%clk 0:09:21.9]} 9... Qe7 {[%clk
0:09:47.6]} 10. Bc3 {[%clk 0:09:12.1]} 10... e5 {[%clk 0:09:46.5]} 11. d5 {[%clk
0:08:35.4]} 11... Nb8 {[%clk 0:09:46.4]} 12. Nd2 {[%clk 0:08:30.7]} 12... Nbd7
{[%clk 0:09:42.7]} 13. e4 {[%clk 0:08:20.9]} 13... c6 {[%clk 0:06:55]} 14. b3
{[%clk 0:06:55.5]} 14... cxd5 {[%clk 0:06:28.7]} 15. exd5 {[%clk 0:06:43.6]}
15... Nc5 {[%clk 0:04:59.1]} 16. Rae1 {[%clk 0:06:25.3]} 16... g6 {[%clk
0:02:04.1]} 17. f3 {[%clk 0:06:22.7]} 17... Bf5 {[%clk 0:02:02.2]} 18. Ne4
{[%clk 0:06:20.8]} 18... Nfxe4 {[%clk 0:01:50.2]} 19. fxe4 {[%clk 0:06:20.3]}
19... Bd7 {[%clk 0:01:51.7]} 20. Bd2 {[%clk 0:05:39.3]} 20... f5 {[%clk
0:01:31.1]} 21. Bh6 {[%clk 0:05:27.6]} 21... Rf7 {[%clk 0:01:30.7]} 22. Qd2
{[%clk 0:05:28.4]} 22... b6 {[%clk 0:01:25.6]} 23. Bg5 {[%clk 0:05:04.5]} 23...
Qf8 {[%clk 0:01:24.5]} 24. Bh6 {[%clk 0:05:02.8]} 24... Qe7 {[%clk 0:01:25.4]}
25. Bg5 {[%clk 0:05:03.1]} 25... Qf8 {[%clk 0:01:20.3]} 26. Bh6 {[%clk
0:05:02.6]} 26... Qc8 {[%clk 0:01:15.8]} 27. Qg5 {[%clk 0:03:28.4]} 27... Qd8
{[%clk 0:01:13.5]} 28. Qd2 {[%clk 0:03:19.3]} 28... b5 {[%clk 0:01:10.1]} 29.
exf5 {[%clk 0:03:06.1]} 29... Bxf5 {[%clk 0:00:24.9]} 30. Be3 {[%clk 0:02:49.6]}
30... Qb6 {[%clk 0:00:22.5]} 31. cxb5 {[%clk 0:02:14.2]} 31... Qxb5 {[%clk
0:00:21.5]} 32. Rc1 {[%clk 0:02:12.4]} 32... Rc8 {[%clk 0:00:14.7]} 33. Rc3
{[%clk 0:01:55.1]} 33... Rfc7 {[%clk 0:00:05.8]} 34. Rfc1 {[%clk 0:01:44.2]}
34... e4 {[%clk 0:00:06.1]} 35. Qd4 {[%clk 0:01:37.3]} 1-0

[Event "GrandPrix_30.05"]
[Site "Chess.com"]
[Date "2020.05.30"]
[Round "3"]
[White "LorisinoC"]
[Black "v-kazakouski"]
[Result "1-0"]
[WhiteElo "2210"]
[BlackElo "2365"]
[TimeControl "600+2"]
[EndTime "9:22:28 PDT"]
[Termination "LorisinoC won by resignation"]

1. e4 {[%clk 0:10:01.9]} 1... c5 {[%clk 0:09:59.1]} 2. Nf3 {[%clk 0:10:01.7]}
2... a6 {[%clk 0:09:59.7]} 3. g3 {[%clk 0:09:56.7]} 3... b5 {[%clk 0:09:59.8]}
4. d3 {[%clk 0:09:54.6]} 4... Bb7 {[%clk 0:09:59.1]} 5. Bg2 {[%clk 0:09:54]}
5... g6 {[%clk 0:09:56.9]} 6. O-O {[%clk 0:09:51.9]} 6... Bg7 {[%clk 0:09:57.1]}
7. Re1 {[%clk 0:09:28.9]} 7... Nc6 {[%clk 0:09:50]} 8. Nbd2 {[%clk 0:09:18.2]}
8... d6 {[%clk 0:09:48.5]} 9. Nf1 {[%clk 0:09:05.1]} 9... e6 {[%clk 0:09:37.3]}
10. c3 {[%clk 0:08:38.7]} 10... Nf6 {[%clk 0:09:13.8]} 11. Bg5 {[%clk
0:08:30.3]} 11... h6 {[%clk 0:09:12]} 12. Bxf6 {[%clk 0:08:22.7]} 12... Bxf6
{[%clk 0:09:02.4]} 13. Ne3 {[%clk 0:08:19.7]} 13... Qb6 {[%clk 0:08:18.4]} 14.
Rc1 {[%clk 0:08:08.5]} 14... O-O {[%clk 0:08:07.8]} 15. Qd2 {[%clk 0:07:49.7]}
15... Bg7 {[%clk 0:08:03.3]} 16. a3 {[%clk 0:07:42.5]} 16... Rfd8 {[%clk
0:07:24.5]} 17. h4 {[%clk 0:07:23.7]} 17... a5 {[%clk 0:07:08.9]} 18. Ng4 {[%clk
0:07:19.3]} 18... Kh7 {[%clk 0:06:17.3]} 19. d4 {[%clk 0:05:59.9]} 19... cxd4
{[%clk 0:04:04.5]} 20. cxd4 {[%clk 0:05:57.6]} 20... f5 {[%clk 0:03:41.1]} 21.
exf5 {[%clk 0:05:08.7]} 21... exf5 {[%clk 0:03:40]} 22. Ne3 {[%clk 0:04:24.7]}
22... Ne7 {[%clk 0:02:32]} 23. g4 {[%clk 0:03:49.5]} 23... fxg4 {[%clk
0:02:24.6]} 24. Nxg4 {[%clk 0:03:48.2]} 24... Nf5 {[%clk 0:02:07.7]} 25. h5
{[%clk 0:03:43.8]} 25... Rf8 {[%clk 0:01:38.7]} 26. hxg6+ {[%clk 0:03:40.2]}
26... Kh8 {[%clk 0:01:40]} 27. d5 {[%clk 0:02:56.3]} 27... Rae8 {[%clk 0:01:24]}
28. Rxe8 {[%clk 0:02:51.4]} 28... Rxe8 {[%clk 0:01:25.9]} 29. Qc2 {[%clk
0:02:17]} 29... Nd4 {[%clk 0:01:07.6]} 30. Qc7 {[%clk 0:02:10.4]} 30... Qxc7
{[%clk 0:01:00.8]} 31. Rxc7 {[%clk 0:02:10.5]} 31... Ne2+ {[%clk 0:01:01.1]} 32.
Kh2 {[%clk 0:02:07.7]} 32... Bxd5 {[%clk 0:01:01.5]} 33. Nd4 {[%clk 0:01:32.3]}
33... Nxd4 {[%clk 0:00:27.3]} 34. Bxd5 {[%clk 0:01:29.2]} 34... h5 {[%clk
0:00:25.5]} 35. Nh6 {[%clk 0:01:25.3]} 35... Ne6 {[%clk 0:00:17.3]} 36. Nf7+
{[%clk 0:01:20.4]} 36... Kg8 {[%clk 0:00:17.5]} 37. Ng5 {[%clk 0:01:20.8]} 1-0

[Event "GrandPrix_30.05"]
[Site "Chess.com"]
[Date "2020.05.30"]
[Round "3"]
[White "Karacsonyi_Gellert"]
[Black "SavelijTartakover"]
[Result "0-1"]
[WhiteElo "2216"]
[BlackElo "2514"]
[TimeControl "600+2"]
[EndTime "9:22:31 PDT"]
[Termination "SavelijTartakover won by resignation"]

1. e4 {[%clk 0:10:01.9]} 1... e6 {[%clk 0:09:58.4]} 2. d4 {[%clk 0:10:00.6]}
2... d5 {[%clk 0:09:59.2]} 3. e5 {[%clk 0:09:57.4]} 3... c5 {[%clk 0:09:59.1]}
4. c3 {[%clk 0:09:58.7]} 4... Qb6 {[%clk 0:09:59]} 5. Nf3 {[%clk 0:09:58.2]}
5... Nc6 {[%clk 0:09:59.3]} 6. a3 {[%clk 0:09:59]} 6... c4 {[%clk 0:09:59.1]} 7.
Be2 {[%clk 0:09:58.3]} 7... Na5 {[%clk 0:09:59.3]} 8. O-O {[%clk 0:09:44.2]}
8... Nb3 {[%clk 0:09:55.7]} 9. Ra2 {[%clk 0:09:40.1]} 9... Bd7 {[%clk
0:09:56.2]} 10. Be3 {[%clk 0:09:24.6]} 10... Ne7 {[%clk 0:09:49.9]} 11. Nbd2
{[%clk 0:09:14.4]} 11... Ba4 {[%clk 0:09:48.9]} 12. Qb1 {[%clk 0:09:08.3]} 12...
Nf5 {[%clk 0:09:35.1]} 13. Bd1 {[%clk 0:09:01.8]} 13... Be7 {[%clk 0:09:28]} 14.
Bxb3 {[%clk 0:08:51.3]} 14... Bxb3 {[%clk 0:09:02.4]} 15. Nxb3 {[%clk
0:08:51.6]} 15... cxb3 {[%clk 0:08:36]} 16. Ra1 {[%clk 0:08:52.5]} 16... O-O
{[%clk 0:08:32.4]} 17. Nd2 {[%clk 0:08:47.5]} 17... a5 {[%clk 0:08:22.6]} 18. a4
{[%clk 0:08:33.5]} 18... f6 {[%clk 0:07:53.1]} 19. exf6 {[%clk 0:08:23.7]} 19...
Rxf6 {[%clk 0:07:35]} 20. Bg5 {[%clk 0:08:00.1]} 20... Rf7 {[%clk 0:07:05.8]}
21. Bxe7 {[%clk 0:08:00.8]} 21... Rxe7 {[%clk 0:07:05.8]} 22. Qd1 {[%clk
0:07:36.8]} 22... Nd6 {[%clk 0:07:06.1]} 23. Re1 {[%clk 0:06:58.1]} 23... Nc4
{[%clk 0:06:47.4]} 24. Qxb3 {[%clk 0:06:34.5]} 24... Qxb3 {[%clk 0:06:41.6]} 25.
Nxb3 {[%clk 0:06:36.4]} 25... Nxb2 {[%clk 0:06:38.1]} 26. Nc5 {[%clk 0:06:26.2]}
26... Rc8 {[%clk 0:06:26.4]} 27. Rab1 {[%clk 0:06:15.6]} 27... b6 {[%clk
0:06:22.4]} 28. Rxb2 {[%clk 0:04:57.5]} 28... bxc5 {[%clk 0:06:08.2]} 29. Rb5
{[%clk 0:04:41.4]} 29... cxd4 {[%clk 0:06:07.1]} 30. cxd4 {[%clk 0:04:43.3]}
30... Rc4 {[%clk 0:06:07.1]} 31. Rxa5 {[%clk 0:04:44.2]} 31... Rxd4 {[%clk
0:06:08]} 32. f3 {[%clk 0:03:46.6]} 32... Rd2 {[%clk 0:05:54.8]} 33. Ra8+ {[%clk
0:03:35]} 33... Kf7 {[%clk 0:05:54.8]} 34. a5 {[%clk 0:03:07.8]} 34... Rb7
{[%clk 0:05:39.5]} 35. a6 {[%clk 0:02:52.8]} 35... Rbb2 {[%clk 0:05:39.6]} 36.
a7 {[%clk 0:02:54.2]} 36... Rxg2+ {[%clk 0:05:17]} 37. Kh1 {[%clk 0:02:54.7]}
37... Rxh2+ {[%clk 0:05:17.8]} 38. Kg1 {[%clk 0:02:55.8]} 38... Rbg2+ {[%clk
0:05:18.5]} 39. Kf1 {[%clk 0:02:56.8]} 39... Ra2 {[%clk 0:05:19.1]} 40. Kg1
{[%clk 0:02:57.4]} 40... Rhg2+ {[%clk 0:05:04.4]} 41. Kh1 {[%clk 0:02:57.4]}
41... Rgc2 {[%clk 0:04:56.9]} 42. Rh8 {[%clk 0:01:20.3]} 42... Rxa7 {[%clk
0:04:49.5]} 43. Rxh7 {[%clk 0:01:21.3]} 43... Rca2 {[%clk 0:04:27.1]} 44. Rh4
{[%clk 0:01:08.6]} 44... Ra1 {[%clk 0:04:21.4]} 45. Rf4+ {[%clk 0:01:07.3]}
45... Ke7 {[%clk 0:04:20.4]} 46. Rxa1 {[%clk 0:01:07.2]} 46... Rxa1+ {[%clk
0:04:21.3]} 47. Kg2 {[%clk 0:01:09.1]} 47... g5 {[%clk 0:04:19.7]} 48. Rb4
{[%clk 0:01:08.4]} 48... Kf6 {[%clk 0:04:20]} 49. Rb8 {[%clk 0:01:09.8]} 49...
Ra7 {[%clk 0:04:11.8]} 50. Rd8 {[%clk 0:01:06.2]} 50... Rf7 {[%clk 0:04:07.5]}
51. Kf2 {[%clk 0:01:04.3]} 51... Ke5 {[%clk 0:04:07.6]} 52. Rg8 {[%clk
0:01:04.4]} 52... Kf4 {[%clk 0:04:04.2]} 53. Ke2 {[%clk 0:01:04.2]} 53... e5
{[%clk 0:03:59.9]} 54. Ra8 {[%clk 0:01:01.4]} 54... e4 {[%clk 0:03:55]} 55. fxe4
{[%clk 0:00:59.4]} 55... Kxe4 {[%clk 0:03:52.9]} 56. Re8+ {[%clk 0:00:58.7]}
56... Kd4 {[%clk 0:03:53]} 57. Rg8 {[%clk 0:00:59]} 57... Rf5 {[%clk 0:03:53.1]}
58. Rg7 {[%clk 0:00:58.8]} 58... Ke4 {[%clk 0:03:52.6]} 59. Re7+ {[%clk
0:00:44.3]} 59... Kf4 {[%clk 0:03:52.9]} 60. Kf2 {[%clk 0:00:41.2]} 60... g4
{[%clk 0:03:50.7]} 61. Rd7 {[%clk 0:00:42]} 61... g3+ {[%clk 0:03:44.3]} 62. Kg2
{[%clk 0:00:43]} 62... Rg5 {[%clk 0:03:44.9]} 63. Rf7+ {[%clk 0:00:42.9]} 63...
Ke4 {[%clk 0:03:44.3]} 64. Re7+ {[%clk 0:00:43.1]} 64... Kd3 {[%clk 0:03:45]}
65. Ra7 {[%clk 0:00:42.1]} 65... d4 {[%clk 0:03:44.4]} 66. Rd7 {[%clk
0:00:41.9]} 66... Ke3 {[%clk 0:03:39.8]} 67. Re7+ {[%clk 0:00:42.6]} 67... Kd2
{[%clk 0:03:40.5]} 68. Ra7 {[%clk 0:00:43.6]} 68... d3 {[%clk 0:03:40.7]} 69.
Ra2+ {[%clk 0:00:45]} 69... Ke3 {[%clk 0:03:41.1]} 70. Ra3 {[%clk 0:00:45.3]}
70... Ke2 {[%clk 0:03:41.6]} 71. Ra8 {[%clk 0:00:45.7]} 71... Re5 {[%clk
0:03:40.4]} 72. Kxg3 {[%clk 0:00:43.9]} 72... d2 {[%clk 0:03:41.1]} 73. Kf4
{[%clk 0:00:41.5]} 73... Re7 {[%clk 0:03:40.9]} 0-1

[Event "GrandPrix_30.05"]
[Site "Chess.com"]
[Date "2020.05.30"]
[Round "3"]
[White "SamadovRead"]
[Black "Alexander_Moskalenko"]
[Result "0-1"]
[WhiteElo "1966"]
[BlackElo "2357"]
[TimeControl "600+2"]
[EndTime "9:22:31 PDT"]
[Termination "Alexander_Moskalenko won by resignation"]

1. d4 {[%clk 0:10:01.9]} 1... h6 {[%clk 0:09:53.9]} 2. c4 {[%clk 0:10:01.4]}
2... d6 {[%clk 0:09:34.6]} 3. Nf3 {[%clk 0:09:57.2]} 3... c6 {[%clk 0:09:35.5]}
4. Nc3 {[%clk 0:09:55.5]} 4... Nd7 {[%clk 0:09:37.4]} 5. g3 {[%clk 0:09:40.5]}
5... g5 {[%clk 0:09:38.6]} 6. Bg2 {[%clk 0:09:27.2]} 6... Bg7 {[%clk 0:09:38.1]}
7. O-O {[%clk 0:09:26.2]} 7... Nf8 {[%clk 0:09:39.6]} 8. h4 {[%clk 0:08:32.8]}
8... Ng6 {[%clk 0:09:31.2]} 9. hxg5 {[%clk 0:07:59.7]} 9... hxg5 {[%clk
0:09:33.1]} 10. Bxg5 {[%clk 0:07:59.6]} 10... Qa5 {[%clk 0:09:19.7]} 11. Qa4
{[%clk 0:07:01.2]} 11... Qf5 {[%clk 0:09:12.4]} 12. Nd5 {[%clk 0:05:43.2]} 12...
Kd8 {[%clk 0:08:34.6]} 13. Ne3 {[%clk 0:05:28.6]} 13... Qd7 {[%clk 0:07:41]} 14.
Rfd1 {[%clk 0:05:19.6]} 14... Rh5 {[%clk 0:07:21.7]} 15. g4 {[%clk 0:04:27.8]}
15... Rh8 {[%clk 0:07:16.4]} 16. Nf5 {[%clk 0:04:15.2]} 16... Bf6 {[%clk
0:07:15]} 17. Bxf6 {[%clk 0:04:04.4]} 17... Nxf6 {[%clk 0:07:16.9]} 18. Ne5
{[%clk 0:03:54.8]} 18... Qe8 {[%clk 0:06:23.1]} 19. Nxc6+ {[%clk 0:03:47]} 19...
Kc7 {[%clk 0:06:17]} 20. Qa5+ {[%clk 0:02:36.9]} 20... b6 {[%clk 0:06:15.1]} 21.
Qc3 {[%clk 0:02:32.2]} 21... Nxg4 {[%clk 0:06:12.2]} 22. c5 {[%clk 0:02:13.7]}
22... Bxf5 {[%clk 0:05:53.8]} 23. cxb6+ {[%clk 0:02:13.8]} 23... Kd7 {[%clk
0:05:55]} 24. Nb8+ {[%clk 0:01:57.2]} 24... Qxb8 {[%clk 0:05:10.6]} 25. Qc6+
{[%clk 0:01:45.3]} 25... Ke6 {[%clk 0:05:08]} 26. b7 {[%clk 0:01:41.3]} 26...
Nf4 {[%clk 0:04:49]} 27. bxa8=Q {[%clk 0:01:21.5]} 27... Nxe2+ {[%clk
0:04:45.1]} 28. Kf1 {[%clk 0:01:21.7]} 28... Qxb2 {[%clk 0:04:43.4]} 29. Qd5+
{[%clk 0:01:20]} 29... Kf6 {[%clk 0:04:42.3]} 30. Qxh8+ {[%clk 0:01:20.5]} 30...
Kg6 {[%clk 0:04:39.9]} 31. Qh5+ {[%clk 0:01:11.6]} 31... Kxh5 {[%clk 0:04:38.5]}
32. Qxf5+ {[%clk 0:01:12.8]} 32... Kh4 {[%clk 0:04:39.9]} 33. Qh7+ {[%clk
0:00:56.2]} 33... Kg5 {[%clk 0:04:40.4]} 34. Qg7+ {[%clk 0:00:57.4]} 34... Kh4
{[%clk 0:04:40.9]} 35. Qh7+ {[%clk 0:00:43.6]} 35... Kg5 {[%clk 0:04:40.9]} 36.
Qd3 {[%clk 0:00:25.8]} 36... Nf4 {[%clk 0:04:38.1]} 37. Qd2 {[%clk 0:00:17.2]}
37... Qb5+ {[%clk 0:04:31.7]} 38. Kg1 {[%clk 0:00:18.4]} 38... Qf5 {[%clk
0:04:31.4]} 39. Rab1 {[%clk 0:00:13.4]} 39... Qh7 {[%clk 0:04:32.1]} 40. Kf1
{[%clk 0:00:09]} 40... Qh2 {[%clk 0:04:24.4]} 41. f3 {[%clk 0:00:10.1]} 41...
Nf6 {[%clk 0:02:44.3]} 42. Rb5+ {[%clk 0:00:10.9]} 42... d5 {[%clk 0:02:45.7]}
43. Re1 {[%clk 0:00:09.6]} 43... Nh5 {[%clk 0:02:46]} 44. Re5+ {[%clk
0:00:10.7]} 44... Kg6 {[%clk 0:02:45.6]} 45. Rxh5 {[%clk 0:00:11]} 45... Nxh5
{[%clk 0:02:46.2]} 46. Qf2 {[%clk 0:00:09.7]} 46... Nf4 {[%clk 0:02:43.8]} 47.
Qg1 {[%clk 0:00:08]} 47... Qh5 {[%clk 0:02:38.7]} 48. Bh1+ {[%clk 0:00:08.6]}
48... Kf6 {[%clk 0:02:40]} 49. Rb2 {[%clk 0:00:07.3]} 49... Qh7 {[%clk
0:02:36.7]} 50. Rd2 {[%clk 0:00:02.8]} 50... Qb1+ {[%clk 0:02:35.7]} 51. Kf2
{[%clk 0:00:04.3]} 51... Nh3+ {[%clk 0:02:36.7]} 0-1